[Event "Titled Tuesday Blitz March 28 Early 2023"]
[White "Manukian, Artak"]
[Black "Lesbekova, Assel"]
[WhiteFideId "13301373"]
[BlackFideId "13713248"]
[WhiteElo "2130"]
[BlackElo "1799"]
[Result "1-0"]
[Round "02"]
[TimeControl "180+2"]
[Date "2023.03.28"]
[WhiteClock "0:00:21"]
[BlackClock "0:00:02"]

1. e4 {[%clk 0:03:00]}  c5 {[%clk 0:02:59]} 2. Nf3 {[%clk 0:03:00]}  Nc6 {[%clk 0:03:00]} 3. c3 {[%clk 0:02:59]}  Nf6 {[%clk 0:02:55]} 4. e5 {[%clk 0:02:59]}  Nd5 {[%clk 0:02:56]} 5. d4 {[%clk 0:03:00]}  cxd4 {[%clk 0:02:55]} 6. cxd4 {[%clk 0:03:01]}  d6 {[%clk 0:02:55]} 7. Nc3 {[%clk 0:03:01]}  Nxc3 {[%clk 0:02:52]} 8. bxc3 {[%clk 0:03:02]}  dxe5 {[%clk 0:02:52]} 9. d5 {[%clk 0:03:03]}  e4 {[%clk 0:02:47]} 10. Ng5 {[%clk 0:03:02]}  Ne5 {[%clk 0:02:41]} 11. Nxe4 {[%clk 0:02:59]}  e6 {[%clk 0:02:42]} 12. Bb5+ {[%clk 0:02:50]}  Bd7 {[%clk 0:02:41]} 13. Bxd7+ {[%clk 0:02:38]}  Qxd7 {[%clk 0:02:40]} 14. dxe6 {[%clk 0:02:25]}  Qxd1+ {[%clk 0:02:37]} 15. Kxd1 {[%clk 0:02:26]}  O-O-O+ {[%clk 0:02:27]} 16. Kc2 {[%clk 0:02:25]}  fxe6 {[%clk 0:02:27]} 17. Bf4 {[%clk 0:02:19]}  Ng6 {[%clk 0:02:22]} 18. Bg3 {[%clk 0:02:15]}  Be7 {[%clk 0:02:17]} 19. Rad1 {[%clk 0:02:10]}  e5 {[%clk 0:02:13]} 20. Rxd8+ {[%clk 0:01:59]}  Rxd8 {[%clk 0:02:14]} 21. h4 {[%clk 0:01:59]}  Bf6 {[%clk 0:01:40]} 22. h5 {[%clk 0:01:55]}  Ne7 {[%clk 0:00:53]} 23. h6 {[%clk 0:01:41]}  Rh8 {[%clk 0:00:51]} 24. Nd6+ {[%clk 0:01:31]}  Kd7 {[%clk 0:00:35]} 25. Nxb7 {[%clk 0:01:31]}  g6 {[%clk 0:00:22]} 26. Rd1+ {[%clk 0:01:24]}  Kc6 {[%clk 0:00:09]} 27. Nd8+ {[%clk 0:01:12]}  Kc7 {[%clk 0:00:09]} 28. Nf7 {[%clk 0:01:11]}  Rf8 {[%clk 0:00:06]} 29. Nd6 {[%clk 0:01:00]}  a6 {[%clk 0:00:04]} 30. Ne4 {[%clk 0:00:55]}  Bh8 {[%clk 0:00:04]} 31. f3 {[%clk 0:00:52]}  Nf5 {[%clk 0:00:04]} 32. Bf2 {[%clk 0:00:47]}  Nxh6 {[%clk 0:00:05]} 33. Rh1 {[%clk 0:00:45]}  Bg7 {[%clk 0:00:03]} 34. Kd3 {[%clk 0:00:28]}  Rd8+ {[%clk 0:00:03]} 35. Ke2 {[%clk 0:00:26]}  Rh8 {[%clk 0:00:02]} 36. Nc5 {[%clk 0:00:21]}  a5 {[%clk 0:00:02]} 37. Ne6+ {[%clk 0:00:21]} 1-0


[Site "https://www.chess.com"]

[Event "Titled Tuesday Blitz March 28 Early 2023"]
[White "Aanna12"]
[Black "Nguyen Hong Nhung"]
[BlackFideId "12412201"]
[WhiteElo "2226"]
[BlackElo "1904"]
[Result "0-1"]
[Round "02"]
[TimeControl "180+2"]
[Date "2023.03.28"]
[WhiteClock "0:01:14"]
[BlackClock "0:00:44"]

1. e4 {[%clk 0:03:00]}  c5 {[%clk 0:02:59]} 2. Nf3 {[%clk 0:03:00]}  e6 {[%clk 0:03:00]} 3. d3 {[%clk 0:03:00]}  d5 {[%clk 0:02:59]} 4. Nbd2 {[%clk 0:03:00]}  Nf6 {[%clk 0:02:58]} 5. g3 {[%clk 0:03:00]}  Be7 {[%clk 0:02:57]} 6. Bg2 {[%clk 0:03:00]}  O-O {[%clk 0:02:57]} 7. O-O {[%clk 0:03:01]}  Nc6 {[%clk 0:02:58]} 8. Re1 {[%clk 0:03:01]}  b5 {[%clk 0:02:58]} 9. e5 {[%clk 0:03:00]}  Nd7 {[%clk 0:02:58]} 10. Nf1 {[%clk 0:02:59]}  a5 {[%clk 0:02:57]} 11. h4 {[%clk 0:02:59]}  b4 {[%clk 0:02:56]} 12. N1h2 {[%clk 0:02:59]}  a4 {[%clk 0:02:49]} 13. a3 {[%clk 0:03:00]}  Nd4 {[%clk 0:02:40]} 14. Nxd4 {[%clk 0:02:53]}  cxd4 {[%clk 0:02:41]} 15. Bf4 {[%clk 0:02:49]}  bxa3 {[%clk 0:02:32]} 16. bxa3 {[%clk 0:02:48]}  Ba6 {[%clk 0:02:29]} 17. h5 {[%clk 0:02:37]}  Re8 {[%clk 0:02:03]} 18. h6 {[%clk 0:02:36]}  g6 {[%clk 0:02:03]} 19. Nf3 {[%clk 0:02:34]}  Qb6 {[%clk 0:02:01]} 20. Bg5 {[%clk 0:02:28]}  Bf8 {[%clk 0:01:58]} 21. Qd2 {[%clk 0:02:27]}  Rac8 {[%clk 0:01:55]} 22. Rec1 {[%clk 0:02:24]}  Rc3 {[%clk 0:01:43]} 23. Qf4 {[%clk 0:02:20]}  Rxa3 {[%clk 0:01:29]} 24. Rab1 {[%clk 0:02:15]}  Qc7 {[%clk 0:01:26]} 25. Nxd4 {[%clk 0:02:12]}  Rc3 {[%clk 0:01:25]} 26. Re1 {[%clk 0:01:55]}  a3 {[%clk 0:01:22]} 27. Bxd5 {[%clk 0:01:41]}  exd5 {[%clk 0:01:13]} 28. e6 {[%clk 0:01:28]}  fxe6 {[%clk 0:00:53]} 29. Qxc7 {[%clk 0:01:16]}  Rxc7 {[%clk 0:00:54]} 30. Nxe6 {[%clk 0:01:17]}  Rc6 {[%clk 0:00:52]} 31. Nxf8 {[%clk 0:01:14]}  Kxf8 {[%clk 0:00:44]} 0-1


[Site "https://www.chess.com"]

[Event "Titled Tuesday Blitz March 28 Early 2023"]
[White "QuiesPrecatio"]
[Black "salgadoLO"]
[WhiteElo "2453"]
[BlackElo "2202"]
[Result "1-0"]
[Round "02"]
[TimeControl "180+2"]
[Date "2023.03.28"]
[WhiteClock "0:02:39"]
[BlackClock "0:01:38"]

1. c4 {[%clk 0:02:59]}  e6 {[%clk 0:02:57]} 2. Nc3 {[%clk 0:02:58]}  d5 {[%clk 0:02:57]} 3. cxd5 {[%clk 0:02:59]}  exd5 {[%clk 0:02:57]} 4. d4 {[%clk 0:02:59]}  c6 {[%clk 0:02:57]} 5. Qc2 {[%clk 0:02:57]}  Nf6 {[%clk 0:02:56]} 6. Bg5 {[%clk 0:02:57]}  Be7 {[%clk 0:02:52]} 7. e3 {[%clk 0:02:57]}  h6 {[%clk 0:02:45]} 8. Bh4 {[%clk 0:02:55]}  O-O {[%clk 0:02:37]} 9. Bd3 {[%clk 0:02:55]}  Nh5 {[%clk 0:02:33]} 10. Bxe7 {[%clk 0:02:51]}  Qxe7 {[%clk 0:02:33]} 11. O-O-O {[%clk 0:02:51]}  Nf6 {[%clk 0:02:26]} 12. Nf3 {[%clk 0:02:49]}  b5 {[%clk 0:02:25]} 13. Ne5 {[%clk 0:02:48]}  b4 {[%clk 0:02:21]} 14. Na4 {[%clk 0:02:44]}  Nfd7 {[%clk 0:02:06]} 15. f4 {[%clk 0:02:41]}  Nb6 {[%clk 0:02:01]} 16. Nc5 {[%clk 0:02:39]}  f6 {[%clk 0:01:38]} 17. Bh7+ {[%clk 0:02:39]} 1-0


[Site "https://www.chess.com"]

[Event "Titled Tuesday Blitz March 28 Early 2023"]
[White "Torres Dominguez, David"]
[Black "Savitha Shri B"]
[WhiteFideId "2220857"]
[BlackFideId "35061887"]
[WhiteElo "1999"]
[BlackElo "2191"]
[Result "1/2-1/2"]
[Round "02"]
[TimeControl "180+2"]
[Date "2023.03.28"]
[WhiteClock "0:00:31"]
[BlackClock "0:00:24"]

1. e4 {[%clk 0:03:00]}  c5 {[%clk 0:03:00]} 2. Nc3 {[%clk 0:03:00]}  g6 {[%clk 0:02:59]} 3. d4 {[%clk 0:02:57]}  Bg7 {[%clk 0:02:51]} 4. dxc5 {[%clk 0:02:54]}  Qa5 {[%clk 0:02:52]} 5. Bd2 {[%clk 0:02:53]}  Qxc5 {[%clk 0:02:52]} 6. Nd5 {[%clk 0:02:51]}  Na6 {[%clk 0:01:47]} 7. Nf3 {[%clk 0:02:35]}  e6 {[%clk 0:01:44]} 8. Nc3 {[%clk 0:02:28]}  Ne7 {[%clk 0:01:43]} 9. e5 {[%clk 0:02:16]}  Bxe5 {[%clk 0:01:38]} 10. Ne4 {[%clk 0:02:14]}  Qc7 {[%clk 0:01:38]} 11. Bxa6 {[%clk 0:01:55]}  bxa6 {[%clk 0:01:37]} 12. O-O {[%clk 0:01:49]}  O-O {[%clk 0:01:30]} 13. Nxe5 {[%clk 0:01:44]}  Qxe5 {[%clk 0:01:31]} 14. Re1 {[%clk 0:01:45]}  f5 {[%clk 0:01:09]} 15. Bc3 {[%clk 0:01:41]}  Qd5 {[%clk 0:01:09]} 16. Nf6+ {[%clk 0:01:36]}  Rxf6 {[%clk 0:01:09]} 17. Bxf6 {[%clk 0:01:34]}  Bb7 {[%clk 0:01:09]} 18. f3 {[%clk 0:01:29]}  Qxd1 {[%clk 0:00:58]} 19. Raxd1 {[%clk 0:01:29]}  Nd5 {[%clk 0:00:59]} 20. Be5 {[%clk 0:01:25]}  Rc8 {[%clk 0:00:50]} 21. c3 {[%clk 0:01:25]}  a5 {[%clk 0:00:51]} 22. Bd4 {[%clk 0:01:18]}  a6 {[%clk 0:00:50]} 23. a3 {[%clk 0:01:09]}  a4 {[%clk 0:00:42]} 24. Kf2 {[%clk 0:01:09]}  a5 {[%clk 0:00:40]} 25. g3 {[%clk 0:01:03]}  Ba6 {[%clk 0:00:40]} 26. Rd2 {[%clk 0:00:56]}  Kf7 {[%clk 0:00:40]} 27. Be5 {[%clk 0:00:54]}  Bc4 {[%clk 0:00:36]} 28. Bf4 {[%clk 0:00:53]}  Rc6 {[%clk 0:00:35]} 29. Rd4 {[%clk 0:00:48]}  Ke7 {[%clk 0:00:31]} 30. Bg5+ {[%clk 0:00:46]}  Kf7 {[%clk 0:00:30]} 31. Bd8 {[%clk 0:00:42]}  d6 {[%clk 0:00:27]} 32. Bxa5 {[%clk 0:00:41]}  e5 {[%clk 0:00:27]} 33. Rd2 {[%clk 0:00:40]}  Ke6 {[%clk 0:00:28]} 34. Bb4 {[%clk 0:00:40]}  g5 {[%clk 0:00:26]} 35. Red1 {[%clk 0:00:38]}  h5 {[%clk 0:00:26]} 36. Re1 {[%clk 0:00:32]}  g4 {[%clk 0:00:25]} 37. f4 {[%clk 0:00:32]}  e4 {[%clk 0:00:25]} 38. Rxd5 {[%clk 0:00:26]}  Bxd5 {[%clk 0:00:23]} 39. Ke3 {[%clk 0:00:27]}  Rc8 {[%clk 0:00:20]} 40. Rd1 {[%clk 0:00:27]}  Rc4 {[%clk 0:00:18]} 41. Rd2 {[%clk 0:00:28]}  Rc6 {[%clk 0:00:17]} 42. Rd4 {[%clk 0:00:28]}  Rc4 {[%clk 0:00:17]} 43. Rxc4 {[%clk 0:00:28]}  Bxc4 {[%clk 0:00:18]} 44. Ba5 {[%clk 0:00:28]}  d5 {[%clk 0:00:18]} 45. Bb6 {[%clk 0:00:28]}  Ke7 {[%clk 0:00:19]} 46. Kd4 {[%clk 0:00:28]}  Kd7 {[%clk 0:00:20]} 47. Bc5 {[%clk 0:00:29]}  Kc6 {[%clk 0:00:20]} 48. Bb4 {[%clk 0:00:29]}  Bf1 {[%clk 0:00:21]} 49. Bf8 {[%clk 0:00:30]}  Bg2 {[%clk 0:00:20]} 50. Bb4 {[%clk 0:00:30]}  Bf3 {[%clk 0:00:20]} 51. Bf8 {[%clk 0:00:30]}  Bd1 {[%clk 0:00:20]} 52. Bb4 {[%clk 0:00:31]}  Bb3 {[%clk 0:00:21]} 53. Ke3 {[%clk 0:00:29]}  Kd7 {[%clk 0:00:22]} 54. Kd4 {[%clk 0:00:30]}  Kc6 {[%clk 0:00:23]} 55. Ke3 {[%clk 0:00:30]}  Kb5 {[%clk 0:00:24]} 56. Kd4 {[%clk 0:00:31]}  Kc6 {[%clk 0:00:24]} 1/2-1/2


[Site "https://www.chess.com"]

[Event "Titled Tuesday Blitz March 28 Early 2023"]
[White "Kiseleva, Arina"]
[Black "Gatterer, Florian"]
[WhiteFideId "4164989"]
[BlackFideId "811688"]
[WhiteElo "1756"]
[BlackElo "2221"]
[Result "1/2-1/2"]
[Round "02"]
[TimeControl "180+2"]
[Date "2023.03.28"]
[WhiteClock "0:01:30"]
[BlackClock "0:01:56"]

1. d4 {[%clk 0:03:00]}  d5 {[%clk 0:02:59]} 2. Nf3 {[%clk 0:03:00]}  Nf6 {[%clk 0:02:59]} 3. e3 {[%clk 0:02:59]}  Bf5 {[%clk 0:02:56]} 4. Bd3 {[%clk 0:03:00]}  Bxd3 {[%clk 0:02:56]} 5. cxd3 {[%clk 0:03:01]}  e6 {[%clk 0:02:52]} 6. O-O {[%clk 0:02:58]}  Nbd7 {[%clk 0:02:51]} 7. Re1 {[%clk 0:02:49]}  Be7 {[%clk 0:02:51]} 8. e4 {[%clk 0:02:47]}  O-O {[%clk 0:02:51]} 9. Nc3 {[%clk 0:02:45]}  c5 {[%clk 0:02:51]} 10. e5 {[%clk 0:02:30]}  Ne8 {[%clk 0:02:49]} 11. dxc5 {[%clk 0:02:25]}  Nxc5 {[%clk 0:02:48]} 12. d4 {[%clk 0:02:23]}  Nd7 {[%clk 0:02:45]} 13. Qd3 {[%clk 0:02:15]}  Rc8 {[%clk 0:02:41]} 14. Bd2 {[%clk 0:02:06]}  a6 {[%clk 0:02:41]} 15. Re3 {[%clk 0:01:54]}  Nb6 {[%clk 0:02:34]} 16. b3 {[%clk 0:01:51]}  Nc7 {[%clk 0:02:24]} 17. h4 {[%clk 0:01:43]}  h6 {[%clk 0:02:23]} 18. h5 {[%clk 0:01:35]}  Qd7 {[%clk 0:02:16]} 19. Nh2 {[%clk 0:01:30]}  Nb5 {[%clk 0:01:56]} 1/2-1/2


[Site "https://www.chess.com"]

[Event "Titled Tuesday Blitz March 28 Early 2023"]
[White "Kuchava, Ana"]
[Black "Kokoszczynski, Jan"]
[WhiteFideId "13605348"]
[BlackFideId "1174460"]
[WhiteElo "2001"]
[BlackElo "2139"]
[Result "1-0"]
[Round "02"]
[TimeControl "180+2"]
[Date "2023.03.28"]
[WhiteClock "0:00:06"]
[BlackClock "0:00:06"]

1. d4 {[%clk 0:02:59]}  d5 {[%clk 0:02:57]} 2. Nf3 {[%clk 0:02:57]}  Nf6 {[%clk 0:02:56]} 3. c4 {[%clk 0:02:57]}  c6 {[%clk 0:02:55]} 4. Qb3 {[%clk 0:02:56]}  dxc4 {[%clk 0:02:54]} 5. Qxc4 {[%clk 0:02:55]}  Bf5 {[%clk 0:02:55]} 6. g3 {[%clk 0:02:54]}  e6 {[%clk 0:02:55]} 7. Bg2 {[%clk 0:02:54]}  Nbd7 {[%clk 0:02:55]} 8. Nc3 {[%clk 0:02:52]}  Be7 {[%clk 0:02:54]} 9. O-O {[%clk 0:02:50]}  O-O {[%clk 0:02:53]} 10. Nh4 {[%clk 0:02:51]}  Bg4 {[%clk 0:02:51]} 11. e4 {[%clk 0:02:48]}  e5 {[%clk 0:02:23]} 12. d5 {[%clk 0:02:15]}  cxd5 {[%clk 0:02:04]} 13. exd5 {[%clk 0:02:11]}  Rc8 {[%clk 0:02:04]} 14. Qb3 {[%clk 0:02:08]}  Nc5 {[%clk 0:02:04]} 15. Qc2 {[%clk 0:01:54]}  a6 {[%clk 0:01:32]} 16. Nf5 {[%clk 0:01:41]}  b5 {[%clk 0:01:28]} 17. h3 {[%clk 0:01:27]}  Bh5 {[%clk 0:01:20]} 18. a3 {[%clk 0:01:17]}  Bg6 {[%clk 0:01:07]} 19. Be3 {[%clk 0:01:05]}  Na4 {[%clk 0:00:55]} 20. Nxe7+ {[%clk 0:00:43]}  Qxe7 {[%clk 0:00:54]} 21. Qb3 {[%clk 0:00:43]}  Nxc3 {[%clk 0:00:50]} 22. bxc3 {[%clk 0:00:42]}  Bd3 {[%clk 0:00:48]} 23. Rfd1 {[%clk 0:00:38]}  Bc4 {[%clk 0:00:47]} 24. Qb4 {[%clk 0:00:35]}  Qd7 {[%clk 0:00:40]} 25. a4 {[%clk 0:00:29]}  Rfd8 {[%clk 0:00:39]} 26. axb5 {[%clk 0:00:24]}  axb5 {[%clk 0:00:40]} 27. Ra7 {[%clk 0:00:18]}  Qf5 {[%clk 0:00:40]} 28. d6 {[%clk 0:00:15]}  h6 {[%clk 0:00:26]} 29. Bb6 {[%clk 0:00:13]}  Rd7 {[%clk 0:00:23]} 30. Rxd7 {[%clk 0:00:12]}  Qxd7 {[%clk 0:00:24]} 31. Bc7 {[%clk 0:00:11]}  Rxc7 {[%clk 0:00:20]} 32. dxc7 {[%clk 0:00:07]}  Qxd1+ {[%clk 0:00:21]} 33. Kh2 {[%clk 0:00:07]}  Qd7 {[%clk 0:00:13]} 34. Qc5 {[%clk 0:00:07]}  Be6 {[%clk 0:00:09]} 35. Bb7 {[%clk 0:00:06]}  Qd2 {[%clk 0:00:08]} 36. c8=Q+ {[%clk 0:00:06]}  Bxc8 {[%clk 0:00:08]} 37. Qxc8+ {[%clk 0:00:06]}  Kh7 {[%clk 0:00:08]} 38. Qf5+ {[%clk 0:00:07]}  Kh8 {[%clk 0:00:08]} 39. Qc8+ {[%clk 0:00:07]}  Ng8 {[%clk 0:00:09]} 40. Qf5 {[%clk 0:00:06]}  Qd7 {[%clk 0:00:06]} 41. Qxd7 {[%clk 0:00:06]} 1-0


[Site "https://www.chess.com"]

[Event "Titled Tuesday Blitz March 28 Early 2023"]
[White "Sowul, Bartosz"]
[Black "Hartikainen, Jarmo"]
[WhiteFideId "1137590"]
[BlackFideId "503134"]
[WhiteElo "2188"]
[BlackElo "2184"]
[Result "1-0"]
[Round "02"]
[TimeControl "180+2"]
[Date "2023.03.28"]
[WhiteClock "0:00:52"]
[BlackClock "0:00:07"]

1. e4 {[%clk 0:03:00]}  c5 {[%clk 0:02:59]} 2. Nc3 {[%clk 0:03:00]}  Nc6 {[%clk 0:02:58]} 3. Bb5 {[%clk 0:03:00]}  g6 {[%clk 0:02:55]} 4. Bxc6 {[%clk 0:02:59]}  dxc6 {[%clk 0:02:55]} 5. f4 {[%clk 0:02:58]}  Bg7 {[%clk 0:02:51]} 6. Nf3 {[%clk 0:02:58]}  Bg4 {[%clk 0:02:48]} 7. h3 {[%clk 0:02:57]}  Bxf3 {[%clk 0:02:47]} 8. Qxf3 {[%clk 0:02:58]}  e5 {[%clk 0:02:39]} 9. d3 {[%clk 0:02:56]}  Qe7 {[%clk 0:02:03]} 10. O-O {[%clk 0:02:47]}  f6 {[%clk 0:01:37]} 11. Be3 {[%clk 0:02:34]}  h6 {[%clk 0:01:31]} 12. Qg3 {[%clk 0:02:26]}  g5 {[%clk 0:01:23]} 13. f5 {[%clk 0:02:22]}  h5 {[%clk 0:01:15]} 14. Qf2 {[%clk 0:02:19]}  b6 {[%clk 0:01:08]} 15. a4 {[%clk 0:02:19]}  a5 {[%clk 0:01:03]} 16. Nb1 {[%clk 0:02:17]}  Nh6 {[%clk 0:00:45]} 17. Bxg5 {[%clk 0:02:04]}  O-O-O {[%clk 0:00:38]} 18. Be3 {[%clk 0:01:59]}  Rhg8 {[%clk 0:00:36]} 19. Nd2 {[%clk 0:01:58]}  Bf8 {[%clk 0:00:32]} 20. Nc4 {[%clk 0:01:53]}  Kc7 {[%clk 0:00:23]} 21. Ra3 {[%clk 0:01:43]}  Rd4 {[%clk 0:00:20]} 22. Rb3 {[%clk 0:01:33]}  Rxc4 {[%clk 0:00:15]} 23. dxc4 {[%clk 0:01:34]}  Ng4 {[%clk 0:00:13]} 24. hxg4 {[%clk 0:01:33]}  hxg4 {[%clk 0:00:13]} 25. Qg3 {[%clk 0:01:26]}  Qh7 {[%clk 0:00:12]} 26. Rd1 {[%clk 0:01:20]}  Qh5 {[%clk 0:00:12]} 27. Rbd3 {[%clk 0:01:17]}  Bh6 {[%clk 0:00:10]} 28. Bxh6 {[%clk 0:01:10]}  Qxh6 {[%clk 0:00:10]} 29. Rd7+ {[%clk 0:01:03]}  Kc8 {[%clk 0:00:10]} 30. Qd3 {[%clk 0:01:01]}  g3 {[%clk 0:00:06]} 31. Rd8+ {[%clk 0:00:55]}  Kb7 {[%clk 0:00:06]} 32. Qd7+ {[%clk 0:00:51]}  Ka6 {[%clk 0:00:07]} 33. Qc8+ {[%clk 0:00:52]} 1-0


[Site "https://www.chess.com"]

[Event "Titled Tuesday Blitz March 28 Early 2023"]
[White "Zacurdajev, Dmitry"]
[Black "Barria Santos, Jose Guilherme"]
[WhiteFideId "4196309"]
[BlackFideId "1939300"]
[WhiteElo "2179"]
[BlackElo "2301"]
[Result "0-1"]
[Round "02"]
[TimeControl "180+2"]
[Date "2023.03.28"]
[WhiteClock "0:00:01"]
[BlackClock "0:01:00"]

1. d4 {[%clk 0:03:00]}  Nf6 {[%clk 0:02:59]} 2. c4 {[%clk 0:03:00]}  g6 {[%clk 0:03:00]} 3. Nc3 {[%clk 0:03:00]}  Bg7 {[%clk 0:03:00]} 4. e4 {[%clk 0:03:01]}  d6 {[%clk 0:03:01]} 5. Nf3 {[%clk 0:03:01]}  O-O {[%clk 0:03:01]} 6. Be2 {[%clk 0:03:01]}  e5 {[%clk 0:03:02]} 7. O-O {[%clk 0:03:02]}  exd4 {[%clk 0:03:01]} 8. Nxd4 {[%clk 0:03:01]}  Re8 {[%clk 0:03:02]} 9. f3 {[%clk 0:03:01]}  c6 {[%clk 0:03:02]} 10. Be3 {[%clk 0:02:45]}  d5 {[%clk 0:03:01]} 11. cxd5 {[%clk 0:02:44]}  cxd5 {[%clk 0:03:01]} 12. Nc2 {[%clk 0:01:15]}  dxe4 {[%clk 0:02:51]} 13. Qxd8 {[%clk 0:01:16]}  Rxd8 {[%clk 0:02:51]} 14. fxe4 {[%clk 0:01:17]}  Re8 {[%clk 0:02:46]} 15. Bc4 {[%clk 0:01:11]}  Be6 {[%clk 0:02:37]} 16. Nd5 {[%clk 0:01:07]}  Bxd5 {[%clk 0:02:06]} 17. exd5 {[%clk 0:00:57]}  Nbd7 {[%clk 0:02:01]} 18. Bd4 {[%clk 0:00:28]}  a6 {[%clk 0:01:56]} 19. Rae1 {[%clk 0:00:26]}  Ne4 {[%clk 0:01:41]} 20. Bxg7 {[%clk 0:00:13]}  Kxg7 {[%clk 0:01:42]} 21. Nd4 {[%clk 0:00:14]}  Nd2 {[%clk 0:01:33]} 22. Rxe8 {[%clk 0:00:14]}  Rxe8 {[%clk 0:01:30]} 23. Rc1 {[%clk 0:00:11]}  Re4 {[%clk 0:01:07]} 24. Nf3 {[%clk 0:00:01]}  Rxc4 {[%clk 0:01:00]} 0-1


[Site "https://www.chess.com"]

[Event "Titled Tuesday Blitz March 28 Early 2023"]
[White "Olsson, William"]
[Black "Kornyukov, Alexey"]
[WhiteFideId "1741721"]
[BlackFideId "4150457"]
[WhiteElo "2197"]
[BlackElo "2352"]
[Result "1-0"]
[Round "02"]
[TimeControl "180+2"]
[Date "2023.03.28"]
[WhiteClock "0:00:34"]
[BlackClock "0:00:16"]

1. c4 {[%clk 0:03:00]}  e5 {[%clk 0:02:57]} 2. g3 {[%clk 0:03:00]}  Nf6 {[%clk 0:02:56]} 3. Bg2 {[%clk 0:03:01]}  Nc6 {[%clk 0:02:55]} 4. Nc3 {[%clk 0:02:57]}  Bc5 {[%clk 0:02:55]} 5. e3 {[%clk 0:02:56]}  O-O {[%clk 0:02:51]} 6. Nge2 {[%clk 0:02:55]}  Bb4 {[%clk 0:02:49]} 7. O-O {[%clk 0:02:50]}  d6 {[%clk 0:02:46]} 8. Nd5 {[%clk 0:02:49]}  Nxd5 {[%clk 0:02:41]} 9. cxd5 {[%clk 0:02:50]}  Ne7 {[%clk 0:02:41]} 10. d4 {[%clk 0:02:49]}  exd4 {[%clk 0:02:32]} 11. Nxd4 {[%clk 0:02:47]}  Bc5 {[%clk 0:02:24]} 12. b3 {[%clk 0:02:44]}  Bxd4 {[%clk 0:02:16]} 13. Qxd4 {[%clk 0:02:42]}  Nf5 {[%clk 0:02:14]} 14. Qd2 {[%clk 0:02:41]}  Bd7 {[%clk 0:01:49]} 15. Bb2 {[%clk 0:02:40]}  f6 {[%clk 0:01:31]} 16. Rfc1 {[%clk 0:02:25]}  Rc8 {[%clk 0:01:25]} 17. Rc4 {[%clk 0:02:17]}  Qe7 {[%clk 0:01:20]} 18. Rac1 {[%clk 0:02:05]}  Bb5 {[%clk 0:01:10]} 19. R4c3 {[%clk 0:02:00]}  Nh6 {[%clk 0:00:53]} 20. a4 {[%clk 0:01:50]}  Ba6 {[%clk 0:00:52]} 21. Qc2 {[%clk 0:01:43]}  Rf7 {[%clk 0:00:46]} 22. Bh3 {[%clk 0:01:38]}  f5 {[%clk 0:00:44]} 23. e4 {[%clk 0:01:20]}  g6 {[%clk 0:00:38]} 24. Re3 {[%clk 0:01:10]}  f4 {[%clk 0:00:34]} 25. gxf4 {[%clk 0:00:41]}  Rd8 {[%clk 0:00:30]} 26. Qc3 {[%clk 0:00:40]}  Kf8 {[%clk 0:00:19]} 27. Be6 {[%clk 0:00:34]}  Rxf4 {[%clk 0:00:16]} 28. Qh8+ {[%clk 0:00:34]} 1-0


[Site "https://www.chess.com"]

[Event "Titled Tuesday Blitz March 28 Early 2023"]
[White "dDobravcan"]
[Black "Gonzalez, Francisco Silva"]
[BlackFideId "1512285"]
[WhiteElo "2140"]
[BlackElo "2074"]
[Result "0-1"]
[Round "02"]
[TimeControl "180+2"]
[Date "2023.03.28"]
[WhiteClock "0:00:02"]
[BlackClock "0:00:32"]

1. e4 {[%clk 0:03:00]}  e5 {[%clk 0:02:37]} 2. Nf3 {[%clk 0:02:59]}  Nc6 {[%clk 0:02:36]} 3. Bb5 {[%clk 0:02:59]}  a6 {[%clk 0:02:36]} 4. Bxc6 {[%clk 0:02:59]}  dxc6 {[%clk 0:02:35]} 5. O-O {[%clk 0:02:59]}  Bd6 {[%clk 0:02:35]} 6. d4 {[%clk 0:02:58]}  exd4 {[%clk 0:02:35]} 7. Nxd4 {[%clk 0:02:53]}  Ne7 {[%clk 0:02:34]} 8. Nc3 {[%clk 0:02:49]}  O-O {[%clk 0:02:34]} 9. f4 {[%clk 0:02:44]}  f5 {[%clk 0:02:32]} 10. e5 {[%clk 0:02:43]}  Bc5 {[%clk 0:02:31]} 11. Be3 {[%clk 0:02:33]}  Ba7 {[%clk 0:02:31]} 12. Bf2 {[%clk 0:02:28]}  Nd5 {[%clk 0:02:31]} 13. Nce2 {[%clk 0:02:25]}  Qe7 {[%clk 0:02:27]} 14. c4 {[%clk 0:02:19]}  Nb6 {[%clk 0:02:26]} 15. Qb3 {[%clk 0:02:17]}  Be6 {[%clk 0:02:25]} 16. Nxe6 {[%clk 0:01:59]}  Qxe6 {[%clk 0:02:25]} 17. Rac1 {[%clk 0:01:58]}  Kh8 {[%clk 0:02:20]} 18. Nd4 {[%clk 0:01:53]}  Qf7 {[%clk 0:02:18]} 19. e6 {[%clk 0:01:44]}  Qe7 {[%clk 0:02:13]} 20. Rce1 {[%clk 0:01:34]}  Rab8 {[%clk 0:02:06]} 21. Re5 {[%clk 0:01:33]}  g6 {[%clk 0:02:01]} 22. g4 {[%clk 0:01:26]}  fxg4 {[%clk 0:02:00]} 23. f5 {[%clk 0:01:26]}  c5 {[%clk 0:01:55]} 24. fxg6 {[%clk 0:01:12]}  cxd4 {[%clk 0:01:53]} 25. Bxd4 {[%clk 0:01:11]}  Rxf1+ {[%clk 0:01:50]} 26. Kxf1 {[%clk 0:01:12]}  Rf8+ {[%clk 0:01:48]} 27. Kg2 {[%clk 0:01:03]}  Kg8 {[%clk 0:01:46]} 28. c5 {[%clk 0:00:57]}  hxg6 {[%clk 0:01:39]} 29. cxb6 {[%clk 0:00:48]}  Bxb6 {[%clk 0:01:37]} 30. Bxb6 {[%clk 0:00:46]}  cxb6 {[%clk 0:01:37]} 31. Qg3 {[%clk 0:00:45]}  Rf5 {[%clk 0:01:37]} 32. Re3 {[%clk 0:00:37]}  Qc5 {[%clk 0:01:32]} 33. Re2 {[%clk 0:00:25]}  Qd5+ {[%clk 0:01:29]} 34. Kg1 {[%clk 0:00:25]}  Qd1+ {[%clk 0:01:27]} 35. Re1 {[%clk 0:00:23]}  Qd4+ {[%clk 0:01:27]} 36. Kg2 {[%clk 0:00:22]}  Qd2+ {[%clk 0:01:21]} 37. Kg1 {[%clk 0:00:21]}  Rf3 {[%clk 0:01:16]} 38. Qb8+ {[%clk 0:00:16]}  Kh7 {[%clk 0:01:16]} 39. Qe5 {[%clk 0:00:13]}  Rf5 {[%clk 0:00:54]} 40. Qc7+ {[%clk 0:00:10]}  Kh6 {[%clk 0:00:51]} 41. Qg3 {[%clk 0:00:08]}  Rf3 {[%clk 0:00:39]} 42. Qh4+ {[%clk 0:00:07]}  Kg7 {[%clk 0:00:39]} 43. Qe7+ {[%clk 0:00:06]}  Kh6 {[%clk 0:00:40]} 44. Qh4+ {[%clk 0:00:04]}  Kg7 {[%clk 0:00:40]} 45. Qe7+ {[%clk 0:00:03]}  Kg8 {[%clk 0:00:36]} 46. Qe8+ {[%clk 0:00:03]}  Kh7 {[%clk 0:00:35]} 47. Qe7+ {[%clk 0:00:02]}  Kh8 {[%clk 0:00:32]} 0-1


[Site "https://www.chess.com"]